[Event "*** Titled Tuesday 3|2 Blitz"]
[Site "Chess.com"]
[Date "2016.06.07"]
[Round "2"]
[White "ShimanovAlex"]
[Black "aspired"]
[Result "1-0"]
[WhiteElo "2661"]
[BlackElo "2510"]
[TimeControl "180+2"]
[EndTime "11:20:02 PDT"]
[Termination "ShimanovAlex won by resignation"]

1. d4 {[%clk 0:03:01]} 1... d5 {[%clk 0:03:00.2]} 2. Bf4 {[%clk 0:02:58.5]} 2...
Nf6 {[%clk 0:02:58]} 3. e3 {[%clk 0:02:59.4]} 3... c5 {[%clk 0:02:57.8]} 4. Nf3
{[%clk 0:02:59.9]} 4... e6 {[%clk 0:02:56.2]} 5. Nbd2 {[%clk 0:03:00.7]} 5...
Bd6 {[%clk 0:02:55.6]} 6. Bg3 {[%clk 0:03:01.7]} 6... O-O {[%clk 0:02:53.9]} 7.
c3 {[%clk 0:03:02.5]} 7... b6 {[%clk 0:02:54.4]} 8. Ne5 {[%clk 0:02:58.5]} 8...
Qe7 {[%clk 0:02:50.9]} 9. f4 {[%clk 0:02:54.2]} 9... Nfd7 {[%clk 0:02:41.5]} 10.
Bd3 {[%clk 0:02:51.9]} 10... f5 {[%clk 0:02:28.1]} 11. Qe2 {[%clk 0:02:49.7]}
11... Bb7 {[%clk 0:02:26.8]} 12. h4 {[%clk 0:02:45.1]} 12... Nc6 {[%clk
0:02:26]} 13. h5 {[%clk 0:02:45.9]} 13... Bxe5 {[%clk 0:02:08.4]} 14. fxe5
{[%clk 0:02:45.8]} 14... a5 {[%clk 0:02:03.2]} 15. Bf4 {[%clk 0:02:45.1]} 15...
a4 {[%clk 0:02:02.5]} 16. a3 {[%clk 0:02:44.8]} 16... Kh8 {[%clk 0:01:50]} 17.
g4 {[%clk 0:02:44]} 17... cxd4 {[%clk 0:01:47.5]} 18. exd4 {[%clk 0:02:44]}
18... fxg4 {[%clk 0:01:43]} 19. Qxg4 {[%clk 0:02:44.9]} 19... Ba6 {[%clk
0:01:44.1]} 20. Bc2 {[%clk 0:02:45.1]} 20... Qf7 {[%clk 0:01:42.8]} 21. Bg3
{[%clk 0:02:31.4]} 21... Ne7 {[%clk 0:01:24.6]} 22. O-O-O {[%clk 0:02:26.4]}
22... Nf5 {[%clk 0:01:25.5]} 23. Rde1 {[%clk 0:02:07.7]} 23... b5 {[%clk
0:01:13.1]} 24. Rhg1 {[%clk 0:01:50.7]} 24... Nb6 {[%clk 0:01:06.4]} 25. Bh4
{[%clk 0:01:44.3]} 25... Ra7 {[%clk 0:01:01.2]} 26. Bg5 {[%clk 0:01:36.4]} 26...
Nc4 {[%clk 0:00:58.9]} 27. Nxc4 {[%clk 0:01:36.5]} 27... dxc4 {[%clk 0:00:59.9]}
28. d5 {[%clk 0:01:36.6]} 28... Bc8 {[%clk 0:00:55.2]} 29. d6 {[%clk 0:01:36.8]}
29... h6 {[%clk 0:00:52.3]} 30. Be3 {[%clk 0:01:33]} 30... Bd7 {[%clk
0:00:53.3]} 31. Bxa7 {[%clk 0:01:33.2]} 1-0

[Event "*** Titled Tuesday 3|2 Blitz"]
[Site "Chess.com"]
[Date "2016.06.07"]
[Round "2"]
[White "Yaacovn"]
[Black "E-Shaposhnikov"]
[Result "0-1"]
[WhiteElo "2631"]
[BlackElo "2542"]
[TimeControl "180+2"]
[EndTime "11:20:12 PDT"]
[Termination "E-Shaposhnikov won by resignation"]

1. d4 {[%clk 0:03:01.9]} 1... Nf6 {[%clk 0:03:00.3]} 2. Nf3 {[%clk 0:03:02.9]}
2... e6 {[%clk 0:03:01.2]} 3. c4 {[%clk 0:03:04.1]} 3... b6 {[%clk 0:02:59.8]}
4. g3 {[%clk 0:03:04.8]} 4... Ba6 {[%clk 0:03:00.7]} 5. Qc2 {[%clk 0:03:05.5]}
5... Bb7 {[%clk 0:03:01.2]} 6. Bg2 {[%clk 0:03:05.8]} 6... c5 {[%clk 0:03:02.1]}
7. dxc5 {[%clk 0:03:05.2]} 7... bxc5 {[%clk 0:03:01.2]} 8. O-O {[%clk
0:03:06.2]} 8... Be7 {[%clk 0:02:59.8]} 9. Nc3 {[%clk 0:03:07.5]} 9... O-O
{[%clk 0:03:01.4]} 10. Rd1 {[%clk 0:03:08.6]} 10... Nc6 {[%clk 0:02:57.1]} 11.
Bf4 {[%clk 0:03:09.4]} 11... d6 {[%clk 0:02:53]} 12. Nb5 {[%clk 0:03:09]} 12...
d5 {[%clk 0:02:50.2]} 13. cxd5 {[%clk 0:03:02.6]} 13... exd5 {[%clk 0:02:50.6]}
14. Nh4 {[%clk 0:02:51.1]} 14... Nb4 {[%clk 0:02:50.6]} 15. Qb1 {[%clk
0:02:33.9]} 15... Bc6 {[%clk 0:02:41.2]} 16. Nc7 {[%clk 0:02:28]} 16... Nh5
{[%clk 0:02:33.6]} 17. Be5 {[%clk 0:01:41.9]} 17... Bxh4 {[%clk 0:02:30.9]} 18.
gxh4 {[%clk 0:01:39.8]} 18... Qe7 {[%clk 0:02:28.9]} 19. Qf5 {[%clk 0:00:42.2]}
19... g6 {[%clk 0:02:26.2]} 20. Qg5 {[%clk 0:00:14.1]} 20... f6 {[%clk
0:02:27.1]} 21. Qd2 {[%clk 0:00:13.1]} 21... Qxe5 {[%clk 0:02:25.9]} 22. Nxa8
{[%clk 0:00:13.3]} 22... Nf4 {[%clk 0:02:19]} 23. Bf3 {[%clk 0:00:11.5]} 23...
Bxa8 {[%clk 0:02:15.7]} 24. a3 {[%clk 0:00:12.5]} 24... Na6 {[%clk 0:02:15.6]}
25. e3 {[%clk 0:00:13.8]} 25... Nh3+ {[%clk 0:02:11.1]} 26. Kg2 {[%clk
0:00:14.9]} 26... Qf5 {[%clk 0:02:11.2]} 27. Bxd5+ {[%clk 0:00:15]} 27... Kg7
{[%clk 0:02:11.6]} 28. Bxa8 {[%clk 0:00:16]} 28... Qg4+ {[%clk 0:02:10.2]} 29.
Kh1 {[%clk 0:00:16.7]} 29... Rd8 {[%clk 0:02:11.8]} 30. f3 {[%clk 0:00:03.9]}
30... Rxd2 {[%clk 0:02:12.3]} 31. fxg4 {[%clk 0:00:05]} 31... Rxd1+ {[%clk
0:02:13.3]} 32. Rxd1 {[%clk 0:00:06]} 32... Nf2+ {[%clk 0:02:14.9]} 33. Kg2
{[%clk 0:00:07.6]} 33... Nxd1 {[%clk 0:02:16.5]} 34. Kf3 {[%clk 0:00:09.5]} 0-1

[Event "*** Titled Tuesday 3|2 Blitz"]
[Site "Chess.com"]
[Date "2016.06.07"]
[Round "2"]
[White "andretta"]
[Black "iaraldinho"]
[Result "1/2-1/2"]
[WhiteElo "2175"]
[BlackElo "2458"]
[TimeControl "180+2"]
[EndTime "11:20:19 PDT"]
[Termination "Game drawn by agreement"]

1. b3 {[%clk 0:03:01.9]} 1... f5 {[%clk 0:03:00.6]} 2. Bb2 {[%clk 0:03:02.3]}
2... Nf6 {[%clk 0:03:01.8]} 3. Bxf6 {[%clk 0:03:02.8]} 3... exf6 {[%clk
0:03:03.7]} 4. e3 {[%clk 0:02:55.9]} 4... d5 {[%clk 0:03:04.2]} 5. d4 {[%clk
0:02:54.4]} 5... Bd6 {[%clk 0:03:04.7]} 6. g3 {[%clk 0:02:51.8]} 6... O-O {[%clk
0:03:05.1]} 7. Bg2 {[%clk 0:02:51.9]} 7... Be6 {[%clk 0:03:07]} 8. Ne2 {[%clk
0:02:46.4]} 8... c5 {[%clk 0:03:02]} 9. O-O {[%clk 0:02:44.5]} 9... Nc6 {[%clk
0:03:03]} 10. c3 {[%clk 0:02:39.8]} 10... Bf7 {[%clk 0:02:55.2]} 11. Nd2 {[%clk
0:02:32]} 11... Rc8 {[%clk 0:02:53.2]} 12. c4 {[%clk 0:02:28.1]} 12... cxd4
{[%clk 0:02:49]} 13. Nxd4 {[%clk 0:02:29.2]} 13... Nxd4 {[%clk 0:02:49.1]} 14.
exd4 {[%clk 0:02:24.8]} 14... Bb4 {[%clk 0:02:45.7]} 15. cxd5 {[%clk 0:02:12.8]}
15... Bxd5 {[%clk 0:02:43.8]} 16. Nc4 {[%clk 0:02:14.2]} 16... Bxg2 {[%clk
0:02:40.6]} 17. Kxg2 {[%clk 0:02:16.1]} 17... Bc3 {[%clk 0:02:40.1]} 18. Rc1
{[%clk 0:02:13.3]} 18... Bxd4 {[%clk 0:02:41.1]} 19. Qf3 {[%clk 0:02:11.8]}
19... b5 {[%clk 0:02:36.4]} 20. Ne3 {[%clk 0:01:55.4]} 20... Rxc1 {[%clk
0:02:34.2]} 21. Rxc1 {[%clk 0:01:55.1]} 21... Bxe3 {[%clk 0:02:35.2]} 22. Qxe3
{[%clk 0:01:53.2]} 22... Qd5+ {[%clk 0:02:36.1]} 23. Qf3 {[%clk 0:01:40.5]}
23... Rd8 {[%clk 0:02:36.9]} 24. Qxd5+ {[%clk 0:01:09.9]} 24... Rxd5 {[%clk
0:02:36]} 25. Rc8+ {[%clk 0:01:10.6]} 25... Kf7 {[%clk 0:02:37.3]} 26. Rc7+
{[%clk 0:01:12.2]} 26... Kg6 {[%clk 0:02:38.4]} 27. Rxa7 {[%clk 0:01:13.9]}
27... Rd2 {[%clk 0:02:39.6]} 28. a4 {[%clk 0:01:08.4]} 28... bxa4 {[%clk
0:02:38]} 29. bxa4 {[%clk 0:01:10.3]} 29... Ra2 {[%clk 0:02:38.8]} 30. a5 {[%clk
0:01:09.9]} 30... Kh6 {[%clk 0:02:39.7]} 31. a6 {[%clk 0:01:10.4]} 31... g5
{[%clk 0:02:38.2]} 32. Ra8 {[%clk 0:01:08.9]} 32... Kg7 {[%clk 0:02:35.9]} 33.
Ra7+ {[%clk 0:01:06.5]} 33... Kg6 {[%clk 0:02:36.9]} 34. h3 {[%clk 0:01:03]}
34... h5 {[%clk 0:02:37.3]} 35. h4 {[%clk 0:01:02.7]} 35... Ra3 {[%clk
0:02:35.9]} 36. Ra8 {[%clk 0:01:01.1]} 36... gxh4 {[%clk 0:02:32.3]} 37. gxh4
{[%clk 0:01:01.6]} 37... f4 {[%clk 0:02:32.8]} 38. a7 {[%clk 0:01:00.3]} 38...
Kf5 {[%clk 0:02:33.7]} 39. Kh2 {[%clk 0:00:57.4]} 39... Ra6 {[%clk 0:02:31.6]}
40. Kg2 {[%clk 0:00:53.8]} 40... Ra2 {[%clk 0:02:32.5]} 41. Kf3 {[%clk
0:00:52.5]} 41... Ra3+ {[%clk 0:02:32.3]} 42. Kg2 {[%clk 0:00:53.4]} 42... Ra2
{[%clk 0:02:03.5]} 1/2-1/2

[Event "*** Titled Tuesday 3|2 Blitz"]
[Site "Chess.com"]
[Date "2016.06.07"]
[Round "2"]
[White "Keaton87"]
[Black "162a54f5d"]
[Result "1-0"]
[WhiteElo "2481"]
[BlackElo "2195"]
[TimeControl "180+2"]
[EndTime "11:20:34 PDT"]
[Termination "Keaton87 won by resignation"]

1. e4 {[%clk 0:03:01.9]} 1... e5 {[%clk 0:02:59.9]} 2. Nf3 {[%clk 0:03:02.6]}
2... Nc6 {[%clk 0:03:00.6]} 3. Bb5 {[%clk 0:03:04.1]} 3... a6 {[%clk 0:03:01.5]}
4. Ba4 {[%clk 0:03:05.3]} 4... Nf6 {[%clk 0:03:02.7]} 5. d4 {[%clk 0:03:06.4]}
5... exd4 {[%clk 0:02:32.2]} 6. O-O {[%clk 0:03:07.3]} 6... Be7 {[%clk
0:02:28.9]} 7. Re1 {[%clk 0:03:08.5]} 7... O-O {[%clk 0:02:26.4]} 8. e5 {[%clk
0:03:09.3]} 8... Nd5 {[%clk 0:02:27.3]} 9. Nxd4 {[%clk 0:03:09.9]} 9... Nb6
{[%clk 0:02:22.2]} 10. Bb3 {[%clk 0:03:07.8]} 10... Nxd4 {[%clk 0:02:16.3]} 11.
Qxd4 {[%clk 0:03:09.7]} 11... d5 {[%clk 0:02:17.5]} 12. exd6 {[%clk 0:03:11.2]}
12... Bxd6 {[%clk 0:02:18.2]} 13. Bf4 {[%clk 0:03:11.6]} 13... Bxf4 {[%clk
0:02:12.9]} 14. Qxf4 {[%clk 0:03:13.5]} 14... Nd5 {[%clk 0:02:07]} 15. Bxd5
{[%clk 0:03:08.3]} 15... Qxd5 {[%clk 0:02:07.5]} 16. Qxc7 {[%clk 0:03:06.9]}
16... Be6 {[%clk 0:01:59.5]} 17. Nc3 {[%clk 0:03:02.4]} 17... Qd2 {[%clk
0:02:00.3]} 18. Qxb7 {[%clk 0:03:00.2]} 18... Qxc2 {[%clk 0:02:01.2]} 19. Rac1
{[%clk 0:03:00.7]} 19... Qg6 {[%clk 0:02:01.4]} 20. Qf3 {[%clk 0:02:56.9]} 20...
Rab8 {[%clk 0:02:01.7]} 21. b3 {[%clk 0:02:57.6]} 21... Rfd8 {[%clk 0:01:59.2]}
22. Qg3 {[%clk 0:02:54.6]} 22... Qxg3 {[%clk 0:01:55.4]} 23. hxg3 {[%clk
0:02:55.1]} 23... Rd2 {[%clk 0:01:53.8]} 24. Red1 {[%clk 0:02:51.7]} 24... Rxd1+
{[%clk 0:01:54.3]} 25. Rxd1 {[%clk 0:02:52.8]} 25... Kf8 {[%clk 0:01:55.5]} 26.
Rd6 {[%clk 0:02:52.3]} 26... Ra8 {[%clk 0:01:39.8]} 27. Ne4 {[%clk 0:02:50.5]}
27... Ke7 {[%clk 0:01:41.2]} 28. Rb6 {[%clk 0:02:50.7]} 28... a5 {[%clk
0:01:41.8]} 29. Nc5 {[%clk 0:02:50.6]} 29... Rc8 {[%clk 0:01:37.7]} 30. Nxe6
{[%clk 0:02:44.4]} 30... fxe6 {[%clk 0:01:39.6]} 31. Rb7+ {[%clk 0:02:31.8]}
31... Kf6 {[%clk 0:01:38.5]} 32. Ra7 {[%clk 0:02:33.3]} 32... Rc5 {[%clk
0:01:39.5]} 33. g4 {[%clk 0:02:30.5]} 33... h6 {[%clk 0:01:38.2]} 34. Kh2 {[%clk
0:02:17.2]} 34... g6 {[%clk 0:01:36.9]} 35. Kg3 {[%clk 0:02:18.2]} 35... h5
{[%clk 0:01:35.2]} 36. gxh5 {[%clk 0:02:13.8]} 36... Rxh5 {[%clk 0:01:37.1]} 37.
a4 {[%clk 0:02:07.4]} 37... Rc5 {[%clk 0:01:38]} 38. Rb7 {[%clk 0:02:06.9]}
38... Ke5 {[%clk 0:01:16.5]} 39. Kg4 {[%clk 0:01:58.5]} 39... Kd4 {[%clk
0:01:14.7]} 40. Rb6 {[%clk 0:01:47.4]} 40... Re5 {[%clk 0:01:14.2]} 41. f4
{[%clk 0:01:44.9]} 41... Re2 {[%clk 0:01:09.2]} 42. g3 {[%clk 0:01:45.9]} 42...
Re3 {[%clk 0:01:08.8]} 43. Rb5 {[%clk 0:01:45.3]} 43... Kc3 {[%clk 0:01:10.1]}
44. Rxa5 {[%clk 0:01:44.6]} 44... Kxb3 {[%clk 0:01:11.4]} 45. Re5 {[%clk
0:01:45.3]} 45... Rc3 {[%clk 0:01:09.9]} 46. Rxe6 {[%clk 0:01:46]} 46... Kxa4
{[%clk 0:01:11.8]} 47. Rxg6 {[%clk 0:01:46.8]} 47... Kb5 {[%clk 0:01:13.7]} 48.
Rd6 {[%clk 0:01:47.3]} 48... Kc5 {[%clk 0:01:15.1]} 1-0

[Event "*** Titled Tuesday 3|2 Blitz"]
[Site "Chess.com"]
[Date "2016.06.07"]
[Round "2"]
[White "GMHess"]
[Black "Imre91"]
[Result "1-0"]
[WhiteElo "2567"]
[BlackElo "2558"]
[TimeControl "180+2"]
[EndTime "11:20:39 PDT"]
[Termination "GMHess won by resignation"]

1. c4 {[%clk 0:03:01.9]} 1... c5 {[%clk 0:02:59.6]} 2. Nc3 {[%clk 0:03:01.7]}
2... g6 {[%clk 0:03:00.6]} 3. e3 {[%clk 0:03:01.9]} 3... Bg7 {[%clk 0:03:01.1]}
4. d4 {[%clk 0:03:03.6]} 4... cxd4 {[%clk 0:03:01.8]} 5. exd4 {[%clk 0:03:05.5]}
5... Nf6 {[%clk 0:03:03.3]} 6. Nf3 {[%clk 0:03:04.2]} 6... O-O {[%clk
0:03:04.2]} 7. d5 {[%clk 0:03:02.9]} 7... d6 {[%clk 0:03:04.1]} 8. Be2 {[%clk
0:03:01.6]} 8... Bf5 {[%clk 0:03:00.6]} 9. O-O {[%clk 0:03:01.9]} 9... Na6
{[%clk 0:03:00.7]} 10. Nd4 {[%clk 0:03:02.1]} 10... Bd7 {[%clk 0:03:01.7]} 11.
b3 {[%clk 0:02:59.9]} 11... Nc5 {[%clk 0:03:02.2]} 12. Bb2 {[%clk 0:02:56.4]}
12... a5 {[%clk 0:03:02.7]} 13. Rc1 {[%clk 0:02:53.5]} 13... Rc8 {[%clk
0:03:02.7]} 14. Re1 {[%clk 0:02:52.7]} 14... Re8 {[%clk 0:03:02]} 15. Bf3 {[%clk
0:02:52]} 15... Qb6 {[%clk 0:03:02.4]} 16. h3 {[%clk 0:02:42.1]} 16... a4 {[%clk
0:02:59.6]} 17. Ndb5 {[%clk 0:02:27.2]} 17... axb3 {[%clk 0:02:57.7]} 18. axb3
{[%clk 0:02:29.1]} 18... Bxb5 {[%clk 0:02:42.4]} 19. Nxb5 {[%clk 0:02:29.7]}
19... Nfd7 {[%clk 0:02:43.8]} 20. Bxg7 {[%clk 0:02:28.2]} 20... Kxg7 {[%clk
0:02:45.7]} 21. Bg4 {[%clk 0:02:05]} 21... Rcd8 {[%clk 0:02:44.9]} 22. Bxd7
{[%clk 0:01:50.4]} 22... Nxd7 {[%clk 0:02:44]} 23. Rc3 {[%clk 0:01:46.3]} 23...
Nf6 {[%clk 0:02:37.5]} 24. Rce3 {[%clk 0:01:47]} 24... Ng8 {[%clk 0:02:38.3]}
25. Qa1+ {[%clk 0:01:40.2]} 25... f6 {[%clk 0:02:36.3]} 26. Nd4 {[%clk 0:01:36]}
26... Ra8 {[%clk 0:02:36.8]} 27. Ne6+ {[%clk 0:01:36.8]} 27... Kf7 {[%clk
0:02:37]} 28. Qc3 {[%clk 0:01:38.1]} 28... Ra2 {[%clk 0:02:36.9]} 29. b4 {[%clk
0:01:28.3]} 29... Rc8 {[%clk 0:02:30.1]} 30. h4 {[%clk 0:01:18.9]} 30... Qa6
{[%clk 0:02:28.1]} 31. c5 {[%clk 0:01:18.5]} 31... Qb5 {[%clk 0:02:23]} 32. h5
{[%clk 0:00:57.5]} 32... dxc5 {[%clk 0:02:23.9]} 33. hxg6+ {[%clk 0:00:56.5]}
33... hxg6 {[%clk 0:02:25]} 34. bxc5 {[%clk 0:00:55]} 34... Qb2 {[%clk
0:02:25.4]} 35. Qxb2 {[%clk 0:00:51.1]} 35... Rxb2 {[%clk 0:02:27.3]} 36. Rh3
{[%clk 0:00:52.3]} 36... f5 {[%clk 0:02:23.4]} 37. Ng5+ {[%clk 0:00:46.9]} 37...
Ke8 {[%clk 0:02:19.5]} 38. d6 {[%clk 0:00:43.6]} 38... Kd7 {[%clk 0:02:15.3]}
39. dxe7 {[%clk 0:00:40.2]} 39... Re8 {[%clk 0:02:13.2]} 40. Rd3+ {[%clk
0:00:40.9]} 40... Kc8 {[%clk 0:02:10.7]} 41. Rd8+ {[%clk 0:00:34.4]} 41... Rxd8
{[%clk 0:02:10.7]} 42. e8=Q {[%clk 0:00:36.3]} 1-0

[Event "*** Titled Tuesday 3|2 Blitz"]
[Site "Chess.com"]
[Date "2016.06.07"]
[Round "2"]
[White "saraswathii"]
[Black "akinov-akinseye"]
[Result "0-1"]
[WhiteElo "1913"]
[BlackElo "1698"]
[TimeControl "180+2"]
[EndTime "11:20:44 PDT"]
[Termination "akinov-akinseye won by resignation"]

1. e4 {[%clk 0:03:01.9]} 1... d5 {[%clk 0:02:57.2]} 2. exd5 {[%clk 0:02:58.9]}
2... Qxd5 {[%clk 0:02:54.7]} 3. Nc3 {[%clk 0:02:57.3]} 3... Qd6 {[%clk
0:02:53.7]} 4. Nf3 {[%clk 0:02:57.3]} 4... Nf6 {[%clk 0:02:53.1]} 5. d4 {[%clk
0:02:57.3]} 5... g6 {[%clk 0:02:47.4]} 6. h3 {[%clk 0:02:49.3]} 6... Bg7 {[%clk
0:02:44.7]} 7. Bc4 {[%clk 0:02:50]} 7... O-O {[%clk 0:02:39]} 8. O-O {[%clk
0:02:50.3]} 8... a6 {[%clk 0:02:31.7]} 9. Ne2 {[%clk 0:02:45.3]} 9... b5 {[%clk
0:02:28.9]} 10. Bf4 {[%clk 0:02:45.1]} 10... Qb6 {[%clk 0:02:24.5]} 11. Bb3
{[%clk 0:02:45.4]} 11... Bb7 {[%clk 0:02:22.3]} 12. Ne5 {[%clk 0:02:41.7]} 12...
Nc6 {[%clk 0:02:20.2]} 13. c3 {[%clk 0:02:34.2]} 13... Nxe5 {[%clk 0:02:16.8]}
14. dxe5 {[%clk 0:02:33.6]} 14... Rfd8 {[%clk 0:02:12.9]} 15. Qe1 {[%clk
0:02:26.9]} 15... Nh5 {[%clk 0:02:10.4]} 16. Bh2 {[%clk 0:02:19.6]} 16... Bh6
{[%clk 0:02:08.1]} 17. e6 {[%clk 0:02:14.1]} 17... f6 {[%clk 0:02:05.4]} 18. Rd1
{[%clk 0:01:58.1]} 18... c5 {[%clk 0:02:01.8]} 19. Rd7 {[%clk 0:01:41.7]} 19...
Rxd7 {[%clk 0:01:58.2]} 20. exd7+ {[%clk 0:01:42.2]} 20... c4 {[%clk 0:01:57.9]}
21. Bc2 {[%clk 0:01:38.1]} 21... Rd8 {[%clk 0:01:58.3]} 22. Nd4 {[%clk
0:01:06.8]} 22... e5 {[%clk 0:01:54.6]} 23. Bxe5 {[%clk 0:00:54.5]} 23... fxe5
{[%clk 0:01:51.5]} 24. Qxe5 {[%clk 0:00:56.4]} 24... Nf6 {[%clk 0:01:47.2]} 25.
Ne6 {[%clk 0:00:18.9]} 25... Nxd7 {[%clk 0:01:44.5]} 26. Qe2 {[%clk 0:00:18.1]}
26... Re8 {[%clk 0:01:41.8]} 27. Re1 {[%clk 0:00:13.6]} 27... Nc5 {[%clk
0:01:39.2]} 0-1

[Event "*** Titled Tuesday 3|2 Blitz"]
[Site "Chess.com"]
[Date "2016.06.07"]
[Round "2"]
[White "lukas_111111"]
[Black "VSERGUEI"]
[Result "0-1"]
[WhiteElo "2208"]
[BlackElo "2499"]
[TimeControl "180+2"]
[EndTime "11:20:46 PDT"]
[Termination "VSERGUEI won by resignation"]

1. e4 {[%clk 0:03:01.9]} 1... e6 {[%clk 0:03:00.8]} 2. d4 {[%clk 0:03:02.2]}
2... d5 {[%clk 0:03:01.8]} 3. Nc3 {[%clk 0:03:02.3]} 3... Nf6 {[%clk 0:03:02.2]}
4. e5 {[%clk 0:03:02.9]} 4... Nfd7 {[%clk 0:03:02.9]} 5. f4 {[%clk 0:03:04.4]}
5... c5 {[%clk 0:03:04]} 6. Nf3 {[%clk 0:03:05.9]} 6... Nc6 {[%clk 0:03:04.8]}
7. Be3 {[%clk 0:03:07.3]} 7... Be7 {[%clk 0:03:05.7]} 8. Qd2 {[%clk 0:03:08.3]}
8... O-O {[%clk 0:03:06]} 9. dxc5 {[%clk 0:03:09.4]} 9... Qa5 {[%clk 0:03:06.1]}
10. O-O-O {[%clk 0:03:04]} 10... b6 {[%clk 0:03:06.1]} 11. cxb6 {[%clk 0:02:42]}
11... axb6 {[%clk 0:03:05.6]} 12. Bb5 {[%clk 0:02:31.4]} 12... Nb4 {[%clk
0:02:57.7]} 13. a3 {[%clk 0:02:22.2]} 13... Na2+ {[%clk 0:02:53.4]} 14. Nxa2
{[%clk 0:02:22.5]} 14... Qxb5 {[%clk 0:02:54.5]} 15. Nd4 {[%clk 0:02:22.4]}
15... Qa4 {[%clk 0:02:51.8]} 16. Nb4 {[%clk 0:02:11.7]} 16... Bb7 {[%clk
0:02:45.1]} 17. Qc3 {[%clk 0:01:24.9]} 17... Nc5 {[%clk 0:02:40.5]} 18. f5
{[%clk 0:01:15.9]} 18... Rfc8 {[%clk 0:02:39.1]} 19. fxe6 {[%clk 0:01:07.8]}
19... fxe6 {[%clk 0:02:35.7]} 20. Kb1 {[%clk 0:01:03.2]} 20... Ra7 {[%clk
0:02:09.1]} 21. Rhf1 {[%clk 0:01:00.6]} 21... Rca8 {[%clk 0:02:08.9]} 22. Bc1
{[%clk 0:00:57.2]} 22... Ne4 {[%clk 0:02:06.1]} 23. Qh3 {[%clk 0:00:32.7]} 23...
Qxb4 {[%clk 0:01:59.7]} 24. Qxe6+ {[%clk 0:00:32.2]} 24... Kh8 {[%clk
0:01:59.8]} 25. Nb3 {[%clk 0:00:22.9]} 25... Rxa3 {[%clk 0:01:47.1]} 26. bxa3
{[%clk 0:00:23.1]} 26... Nc3+ {[%clk 0:01:47.3]} 27. Kb2 {[%clk 0:00:23.2]}
27... Nxd1+ {[%clk 0:01:45.1]} 28. Rxd1 {[%clk 0:00:23.3]} 28... Qxa3+ {[%clk
0:01:45.6]} 29. Kc3 {[%clk 0:00:24.5]} 29... Qb4+ {[%clk 0:01:46]} 30. Kd3
{[%clk 0:00:25.4]} 30... Qe4+ {[%clk 0:01:41.6]} 31. Kd2 {[%clk 0:00:21.4]}
31... Bg5+ {[%clk 0:01:40.9]} 32. Kc3 {[%clk 0:00:21.8]} 32... Rc8+ {[%clk
0:01:41.5]} 0-1

[Event "*** Titled Tuesday 3|2 Blitz"]
[Site "Chess.com"]
[Date "2016.06.07"]
[Round "2"]
[White "AleksandrKholin"]
[Black "Ksenia_Legenko"]
[Result "1-0"]
[WhiteElo "2127"]
[BlackElo "2027"]
[TimeControl "180+2"]
[EndTime "11:21:02 PDT"]
[Termination "AleksandrKholin won by resignation"]

1. d4 {[%clk 0:02:49.7]} 1... d5 {[%clk 0:02:58.8]} 2. Nf3 {[%clk 0:02:50.3]}
2... Nf6 {[%clk 0:02:59]} 3. g3 {[%clk 0:02:51.2]} 3... e6 {[%clk 0:02:59]} 4.
Bg2 {[%clk 0:02:51.7]} 4... c5 {[%clk 0:02:59.1]} 5. O-O {[%clk 0:02:52]} 5...
Nc6 {[%clk 0:02:59.7]} 6. c4 {[%clk 0:02:52.9]} 6... Be7 {[%clk 0:02:57.5]} 7.
Nc3 {[%clk 0:02:52.9]} 7... O-O {[%clk 0:02:56.4]} 8. cxd5 {[%clk 0:02:53.6]}
8... exd5 {[%clk 0:02:50.5]} 9. Bf4 {[%clk 0:02:51.7]} 9... Be6 {[%clk
0:02:46.9]} 10. Rc1 {[%clk 0:02:49.4]} 10... Rc8 {[%clk 0:02:46.4]} 11. dxc5
{[%clk 0:02:45.2]} 11... Bxc5 {[%clk 0:02:46.7]} 12. Na4 {[%clk 0:02:46.3]}
12... Be7 {[%clk 0:02:41.2]} 13. Nc5 {[%clk 0:02:46.4]} 13... b6 {[%clk
0:02:33.7]} 14. Nxe6 {[%clk 0:02:33.5]} 14... fxe6 {[%clk 0:02:34.4]} 15. Qa4
{[%clk 0:02:33.8]} 15... Na5 {[%clk 0:02:03]} 16. Nd4 {[%clk 0:02:25.9]} 16...
Qd7 {[%clk 0:01:21.7]} 17. Qxd7 {[%clk 0:02:24.8]} 17... Nxd7 {[%clk 0:01:22.4]}
18. Nxe6 {[%clk 0:02:25.4]} 18... Rfe8 {[%clk 0:01:18.6]} 19. Nc7 {[%clk
0:02:20.6]} 19... Red8 {[%clk 0:01:10]} 20. Bxd5+ {[%clk 0:02:20.1]} 20... Kh8
{[%clk 0:01:11.6]} 21. Be6 {[%clk 0:02:21.3]} 21... Nb7 {[%clk 0:00:59.2]} 22.
Rfd1 {[%clk 0:02:19]} 22... Nbc5 {[%clk 0:01:00.2]} 23. Bh3 {[%clk 0:02:01.4]}
23... g5 {[%clk 0:01:00.7]} 24. Bxd7 {[%clk 0:01:50.5]} 24... Rxd7 {[%clk
0:00:55.6]} 25. Be5+ {[%clk 0:01:50]} 25... Kg8 {[%clk 0:00:53.3]} 26. Nd5
{[%clk 0:01:29.9]} 26... Rf8 {[%clk 0:00:11.8]} 27. Nxe7+ {[%clk 0:01:27.5]}
27... Rxe7 {[%clk 0:00:13]} 28. Bd6 {[%clk 0:01:28.9]} 28... Rxe2 {[%clk
0:00:13.3]} 1-0